[Event "*** Titled Tuesday Blitz"]
[Site "Chess.com"]
[Date "2021.03.30"]
[Round "1"]
[White "tjychess"]
[Black "slowdgehammer"]
[Result "1-0"]
[WhiteElo "2679"]
[BlackElo "2361"]
[TimeControl "180+1"]
[EndTime "10:07:01 PDT"]
[Termination "tjychess won by checkmate"]

1. d4 {[%clk 0:03:00.9]} 1... d5 {[%clk 0:03:00]} 2. c4 {[%clk 0:03:01.2]} 2...
dxc4 {[%clk 0:03:00.4]} 3. Nf3 {[%clk 0:03:01.2]} 3... Nf6 {[%clk 0:02:58.2]} 4.
e3 {[%clk 0:02:59.2]} 4... e6 {[%clk 0:02:54.2]} 5. Bxc4 {[%clk 0:02:58.8]} 5...
a6 {[%clk 0:02:52.1]} 6. a4 {[%clk 0:02:58.4]} 6... c5 {[%clk 0:02:50.4]} 7. O-O
{[%clk 0:02:57.2]} 7... Nc6 {[%clk 0:02:48]} 8. Qe2 {[%clk 0:02:57.1]} 8... Be7
{[%clk 0:02:44.3]} 9. Rd1 {[%clk 0:02:57.3]} 9... Qc7 {[%clk 0:02:45]} 10. Nc3
{[%clk 0:02:55]} 10... cxd4 {[%clk 0:02:44.4]} 11. exd4 {[%clk 0:02:55.9]} 11...
Nb4 {[%clk 0:02:31]} 12. Bg5 {[%clk 0:02:52.1]} 12... O-O {[%clk 0:02:22.6]} 13.
Rac1 {[%clk 0:02:51.5]} 13... Qa5 {[%clk 0:02:09.5]} 14. Ne5 {[%clk 0:02:40]}
14... Nbd5 {[%clk 0:01:54.4]} 15. Qf3 {[%clk 0:02:18.3]} 15... Nxc3 {[%clk
0:01:45.2]} 16. bxc3 {[%clk 0:02:17.8]} 16... Qxa4 {[%clk 0:01:38.8]} 17. Bd3
{[%clk 0:02:15.3]} 17... Qe8 {[%clk 0:01:31.3]} 18. Bb1 {[%clk 0:01:50.7]} 18...
Nd7 {[%clk 0:01:28.3]} 19. Qh3 {[%clk 0:01:29.5]} 19... g6 {[%clk 0:01:13.7]}
20. Bh6 {[%clk 0:01:28]} 20... Nxe5 {[%clk 0:01:04.7]} 21. dxe5 {[%clk
0:01:28.9]} 21... b5 {[%clk 0:01:05]} 22. Be4 {[%clk 0:01:24.2]} 22... Rb8
{[%clk 0:01:01.9]} 23. Qf3 {[%clk 0:01:13.9]} 23... Ba3 {[%clk 0:00:48.8]} 24.
Ra1 {[%clk 0:01:09]} 24... Qe7 {[%clk 0:00:46.8]} 25. Bxf8 {[%clk 0:01:05.8]}
25... Qxf8 {[%clk 0:00:47.7]} 26. Rxa3 {[%clk 0:00:37.8]} 26... Qxa3 {[%clk
0:00:41.3]} 27. Rd8+ {[%clk 0:00:38.2]} 27... Kg7 {[%clk 0:00:41]} 28. Qf6+
{[%clk 0:00:38.3]} 28... Kh6 {[%clk 0:00:41.6]} 29. h4 {[%clk 0:00:36.2]} 29...
Qc1+ {[%clk 0:00:36]} 30. Kh2 {[%clk 0:00:35.5]} 30... b4 {[%clk 0:00:27.3]} 31.
Qxf7 {[%clk 0:00:20.7]} 31... bxc3 {[%clk 0:00:20.2]} 32. Bf3 {[%clk 0:00:16.4]}
32... g5 {[%clk 0:00:07.1]} 33. Qf6# {[%clk 0:00:15.7]} 1-0

[Event "*** Titled Tuesday Blitz"]
[Site "Chess.com"]
[Date "2021.03.30"]
[Round "1"]
[White "zmeeed67"]
[Black "Jumbo"]
[Result "0-1"]
[WhiteElo "2417"]
[BlackElo "2781"]
[TimeControl "180+1"]
[EndTime "10:07:02 PDT"]
[Termination "Jumbo won by checkmate"]

1. d4 {[%clk 0:03:00.9]} 1... e6 {[%clk 0:02:58.5]} 2. c4 {[%clk 0:03:01.2]}
2... b6 {[%clk 0:02:57.4]} 3. a3 {[%clk 0:02:58]} 3... Bb7 {[%clk 0:02:55.9]} 4.
Nc3 {[%clk 0:02:55.1]} 4... f5 {[%clk 0:02:55.7]} 5. d5 {[%clk 0:02:51.3]} 5...
Nf6 {[%clk 0:02:55.6]} 6. g3 {[%clk 0:02:49.5]} 6... Bd6 {[%clk 0:02:55.9]} 7.
Bg2 {[%clk 0:02:49.4]} 7... O-O {[%clk 0:02:56.3]} 8. Nh3 {[%clk 0:02:46.5]}
8... a5 {[%clk 0:02:55.5]} 9. O-O {[%clk 0:02:45.1]} 9... Na6 {[%clk 0:02:55.5]}
10. b3 {[%clk 0:02:21.8]} 10... Nc5 {[%clk 0:02:48.9]} 11. Bb2 {[%clk
0:02:17.7]} 11... Be5 {[%clk 0:02:47.8]} 12. Qc2 {[%clk 0:02:03.2]} 12... d6
{[%clk 0:02:22.5]} 13. Rad1 {[%clk 0:01:49.4]} 13... Bxc3 {[%clk 0:02:13.1]} 14.
Bxc3 {[%clk 0:01:45.9]} 14... e5 {[%clk 0:02:02.9]} 15. b4 {[%clk 0:01:23.7]}
15... axb4 {[%clk 0:02:02.5]} 16. axb4 {[%clk 0:01:24.6]} 16... Na4 {[%clk
0:02:00.6]} 17. Bd2 {[%clk 0:01:17.1]} 17... Qd7 {[%clk 0:01:46.8]} 18. Ng5
{[%clk 0:01:14.7]} 18... b5 {[%clk 0:01:46.5]} 19. Ne6 {[%clk 0:00:38.7]} 19...
Rf7 {[%clk 0:01:46.1]} 20. Qxf5 {[%clk 0:00:29.8]} 20... bxc4 {[%clk 0:01:41.1]}
21. e4 {[%clk 0:00:29.3]} 21... Nxd5 {[%clk 0:01:38.1]} 22. Qh3 {[%clk
0:00:28.1]} 22... Nf6 {[%clk 0:01:36.4]} 23. f4 {[%clk 0:00:20.4]} 23... Bxe4
{[%clk 0:01:26.8]} 24. Bxe4 {[%clk 0:00:15]} 24... Nxe4 {[%clk 0:01:27.7]} 25.
f5 {[%clk 0:00:15.9]} 25... Nb2 {[%clk 0:01:21.6]} 26. Rde1 {[%clk 0:00:10.6]}
26... Nxd2 {[%clk 0:01:20.5]} 27. Ng5 {[%clk 0:00:11]} 27... h6 {[%clk
0:01:16.4]} 28. Nxf7 {[%clk 0:00:11.3]} 28... Nxf1 {[%clk 0:01:07.2]} 29. Nxh6+
{[%clk 0:00:11.3]} 29... gxh6 {[%clk 0:01:07.3]} 30. Qxh6 {[%clk 0:00:12.2]}
30... Qg7 {[%clk 0:00:58.4]} 31. Qe6+ {[%clk 0:00:10.9]} 31... Qf7 {[%clk
0:00:58]} 32. Qh6 {[%clk 0:00:11.5]} 32... Nxg3 {[%clk 0:00:48.3]} 33. hxg3
{[%clk 0:00:10.3]} 33... Nd3 {[%clk 0:00:48.7]} 34. Re4 {[%clk 0:00:10.3]} 34...
Qxf5 {[%clk 0:00:36.1]} 35. Rh4 {[%clk 0:00:05.2]} 35... Ra1+ {[%clk 0:00:34.8]}
36. Kg2 {[%clk 0:00:03.8]} 36... Ra2+ {[%clk 0:00:34.1]} 37. Kh1 {[%clk
0:00:03.9]} 37... Qf1# {[%clk 0:00:34]} 0-1

[Event "*** Titled Tuesday Blitz"]
[Site "Chess.com"]
[Date "2021.03.30"]
[Round "1"]
[White "Chessmasterzt"]
[Black "annamaja"]
[Result "0-1"]
[WhiteElo "2612"]
[BlackElo "2352"]
[TimeControl "180+1"]
[EndTime "10:07:02 PDT"]
[Termination "annamaja won by checkmate"]

1. d4 {[%clk 0:02:59.6]} 1... d5 {[%clk 0:02:59.6]} 2. c4 {[%clk 0:02:58.2]}
2... c6 {[%clk 0:02:58.6]} 3. Nf3 {[%clk 0:02:57]} 3... Nf6 {[%clk 0:02:58.8]}
4. Nc3 {[%clk 0:02:56.4]} 4... e6 {[%clk 0:02:54.4]} 5. Bg5 {[%clk 0:02:53.9]}
5... Nbd7 {[%clk 0:02:53.2]} 6. cxd5 {[%clk 0:02:44.4]} 6... exd5 {[%clk
0:02:52.4]} 7. e3 {[%clk 0:02:43.4]} 7... Bd6 {[%clk 0:02:50.8]} 8. Bd3 {[%clk
0:02:42.3]} 8... O-O {[%clk 0:02:48.8]} 9. Qc2 {[%clk 0:02:34.6]} 9... h6 {[%clk
0:02:36]} 10. Bh4 {[%clk 0:02:33.1]} 10... Re8 {[%clk 0:02:34.5]} 11. O-O-O
{[%clk 0:02:19.1]} 11... b5 {[%clk 0:02:19.7]} 12. g4 {[%clk 0:01:52.3]} 12...
b4 {[%clk 0:01:38.3]} 13. Ne2 {[%clk 0:01:51.2]} 13... Qa5 {[%clk 0:00:57.5]}
14. Kb1 {[%clk 0:01:28.3]} 14... Ne4 {[%clk 0:00:16.6]} 15. g5 {[%clk
0:01:05.7]} 15... h5 {[%clk 0:00:10.5]} 16. g6 {[%clk 0:01:00.3]} 16... f6
{[%clk 0:00:09.9]} 17. Qxc6 {[%clk 0:00:27.3]} 17... b3 {[%clk 0:00:08.4]} 18.
axb3 {[%clk 0:00:23]} 18... Rb8 {[%clk 0:00:08.7]} 19. Bxe4 {[%clk 0:00:19.6]}
19... dxe4 {[%clk 0:00:09.3]} 20. Qxd6 {[%clk 0:00:16.6]} 20... exf3 {[%clk
0:00:09.3]} 21. Nc1 {[%clk 0:00:15.9]} 21... Qf5+ {[%clk 0:00:08.5]} 22. Rd3
{[%clk 0:00:14.7]} 22... Rb6 {[%clk 0:00:08.5]} 23. Qg3 {[%clk 0:00:07.2]} 23...
Ba6 {[%clk 0:00:08.5]} 24. Rd1 {[%clk 0:00:05.6]} 24... Bxd3+ {[%clk 0:00:08.7]}
25. Rxd3 {[%clk 0:00:06.5]} 25... Rc8 {[%clk 0:00:08.3]} 26. e4 {[%clk
0:00:03.3]} 26... Qxe4 {[%clk 0:00:08.1]} 27. Ka1 {[%clk 0:00:02.6]} 27... Rxc1+
{[%clk 0:00:07.9]} 28. Ka2 {[%clk 0:00:03.1]} 28... Ra6# {[%clk 0:00:08.2]} 0-1

[Event "*** Titled Tuesday Blitz"]
[Site "Chess.com"]
[Date "2021.03.30"]
[Round "1"]
[White "MatyChess1"]
[Black "dpopadic"]
[Result "1-0"]
[WhiteElo "2616"]
[BlackElo "2318"]
[TimeControl "180+1"]
[EndTime "10:07:05 PDT"]
[Termination "MatyChess1 won by resignation"]

1. e4 {[%clk 0:03:00.9]} 1... c5 {[%clk 0:02:59.6]} 2. Nf3 {[%clk 0:03:01.3]}
2... Nc6 {[%clk 0:02:59.5]} 3. d4 {[%clk 0:03:01.5]} 3... cxd4 {[%clk
0:02:59.1]} 4. Nxd4 {[%clk 0:03:02.4]} 4... Nf6 {[%clk 0:02:59.1]} 5. Nc3 {[%clk
0:03:02.9]} 5... e5 {[%clk 0:02:59.1]} 6. Ndb5 {[%clk 0:03:03.6]} 6... d6 {[%clk
0:02:59.1]} 7. Bg5 {[%clk 0:03:04.1]} 7... a6 {[%clk 0:02:59.1]} 8. Na3 {[%clk
0:03:04.8]} 8... b5 {[%clk 0:02:58.6]} 9. Bxf6 {[%clk 0:03:05.4]} 9... gxf6
{[%clk 0:02:58.1]} 10. Nd5 {[%clk 0:03:06.3]} 10... Bg7 {[%clk 0:02:58.2]} 11.
g3 {[%clk 0:03:06.6]} 11... O-O {[%clk 0:02:53.9]} 12. Bg2 {[%clk 0:03:07.1]}
12... Rb8 {[%clk 0:02:54]} 13. c3 {[%clk 0:03:06.7]} 13... f5 {[%clk 0:02:52.1]}
14. exf5 {[%clk 0:03:06.7]} 14... Bxf5 {[%clk 0:02:51]} 15. Nc2 {[%clk
0:03:07.6]} 15... Bg6 {[%clk 0:02:48.4]} 16. O-O {[%clk 0:03:06.7]} 16... f5
{[%clk 0:02:48.3]} 17. f4 {[%clk 0:03:07.3]} 17... Kh8 {[%clk 0:02:43.3]} 18. a4
{[%clk 0:03:07.5]} 18... bxa4 {[%clk 0:02:41.9]} 19. Qc1 {[%clk 0:02:53.5]}
19... a5 {[%clk 0:02:23.8]} 20. Rxa4 {[%clk 0:02:52.6]} 20... Ne7 {[%clk
0:02:13.5]} 21. Nce3 {[%clk 0:02:50.4]} 21... Nxd5 {[%clk 0:02:10.9]} 22. Nxd5
{[%clk 0:02:50]} 22... Be8 {[%clk 0:02:03.5]} 23. Ra1 {[%clk 0:02:41.8]} 23...
Bc6 {[%clk 0:02:03]} 24. Kh1 {[%clk 0:02:41]} 24... Bxd5 {[%clk 0:02:01.7]} 25.
Bxd5 {[%clk 0:02:41]} 25... exf4 {[%clk 0:02:00.7]} 26. gxf4 {[%clk 0:02:15.3]}
26... Qb6 {[%clk 0:01:58.2]} 27. b3 {[%clk 0:02:10.9]} 27... Rbc8 {[%clk
0:01:52.2]} 28. c4 {[%clk 0:02:09.1]} 28... Qxb3 {[%clk 0:01:38.1]} 29. Rxa5
{[%clk 0:02:06.5]} 29... Rce8 {[%clk 0:01:20.5]} 30. Ra7 {[%clk 0:01:24.3]}
30... Bf6 {[%clk 0:01:06.6]} 31. Qb1 {[%clk 0:01:14.3]} 31... Qh3 {[%clk
0:01:02.6]} 32. Rf3 {[%clk 0:00:57.6]} 32... Qh5 {[%clk 0:00:56.9]} 33. Qf1
{[%clk 0:00:52.4]} 33... Bd4 {[%clk 0:00:46.6]} 34. Rb7 {[%clk 0:00:26.7]} 34...
Qh4 {[%clk 0:00:35.7]} 35. Rh3 {[%clk 0:00:14.9]} 35... Re1 {[%clk 0:00:21.4]}
36. Rxh7+ {[%clk 0:00:12.9]} 36... Kxh7 {[%clk 0:00:19.6]} 37. Rxh4+ {[%clk
0:00:12.8]} 37... Kg7 {[%clk 0:00:20.2]} 38. Qxe1 {[%clk 0:00:13.7]} 1-0

[Event "*** Titled Tuesday Blitz"]
[Site "Chess.com"]
[Date "2021.03.30"]
[Round "1"]
[White "federicosellitti"]
[Black "LordIron"]
[Result "1-0"]
[WhiteElo "2544"]
[BlackElo "2222"]
[TimeControl "180+1"]
[EndTime "10:07:06 PDT"]
[Termination "federicosellitti won by checkmate"]

1. e4 {[%clk 0:02:58.4]} 1... c5 {[%clk 0:02:57.4]} 2. Nc3 {[%clk 0:02:58.4]}
2... d6 {[%clk 0:02:56.5]} 3. g3 {[%clk 0:02:58.8]} 3... g6 {[%clk 0:02:56.4]}
4. Bg2 {[%clk 0:02:59.3]} 4... Bg7 {[%clk 0:02:57.1]} 5. d3 {[%clk 0:02:59.9]}
5... Nc6 {[%clk 0:02:57]} 6. Be3 {[%clk 0:03:00.4]} 6... Nf6 {[%clk 0:02:56]} 7.
h3 {[%clk 0:03:00.2]} 7... O-O {[%clk 0:02:56.3]} 8. Qd2 {[%clk 0:03:00.5]} 8...
e5 {[%clk 0:02:53.7]} 9. Bh6 {[%clk 0:02:54]} 9... Nd4 {[%clk 0:02:53.4]} 10.
Bxg7 {[%clk 0:02:53.4]} 10... Kxg7 {[%clk 0:02:54.2]} 11. Nd1 {[%clk 0:02:49]}
11... d5 {[%clk 0:02:49.9]} 12. c3 {[%clk 0:02:49.2]} 12... Nc6 {[%clk
0:02:45.2]} 13. exd5 {[%clk 0:02:45.8]} 13... Nxd5 {[%clk 0:02:46.1]} 14. Ne3
{[%clk 0:02:46.3]} 14... Be6 {[%clk 0:02:45.4]} 15. Nf3 {[%clk 0:02:38.1]} 15...
Re8 {[%clk 0:02:37.9]} 16. O-O {[%clk 0:02:36.8]} 16... Qf6 {[%clk 0:02:10.7]}
17. Rae1 {[%clk 0:02:19.8]} 17... Nxe3 {[%clk 0:02:01.9]} 18. fxe3 {[%clk
0:02:02.2]} 18... Qd8 {[%clk 0:01:30.1]} 19. h4 {[%clk 0:01:36.9]} 19... e4
{[%clk 0:01:17.3]} 20. Ng5 {[%clk 0:01:13.1]} 20... Qxd3 {[%clk 0:01:11.4]} 21.
Qf2 {[%clk 0:01:13.2]} 21... f5 {[%clk 0:01:00.1]} 22. Bxe4 {[%clk 0:01:03]}
22... Qc4 {[%clk 0:00:44.6]} 23. Bb1 {[%clk 0:00:43.9]} 23... Ne5 {[%clk
0:00:39.3]} 24. e4 {[%clk 0:00:38.8]} 24... Ng4 {[%clk 0:00:25.7]} 25. Qf4
{[%clk 0:00:39.4]} 25... Bd7 {[%clk 0:00:17.6]} 26. exf5 {[%clk 0:00:31.5]}
26... Qxf4 {[%clk 0:00:15.9]} 27. gxf4 {[%clk 0:00:27.5]} 27... Bxf5 {[%clk
0:00:15.1]} 28. Bxf5 {[%clk 0:00:24.3]} 28... gxf5 {[%clk 0:00:16]} 29. Ne6+
{[%clk 0:00:24.9]} 29... Kf6 {[%clk 0:00:16]} 30. Nxc5 {[%clk 0:00:25.5]} 30...
Rg8 {[%clk 0:00:15.2]} 31. Re6+ {[%clk 0:00:15.8]} 31... Kf7 {[%clk 0:00:15.1]}
32. Rfe1 {[%clk 0:00:16.4]} 32... b6 {[%clk 0:00:11.2]} 33. Re7+ {[%clk
0:00:15.4]} 33... Kf8 {[%clk 0:00:11.5]} 34. Nd7# {[%clk 0:00:15.8]} 1-0

[Event "*** Titled Tuesday Blitz"]
[Site "Chess.com"]
[Date "2021.03.30"]
[Round "1"]
[White "jraosam"]
[Black "Omk124"]
[Result "0-1"]
[WhiteElo "1840"]
[BlackElo "2478"]
[TimeControl "180+1"]
[EndTime "10:07:06 PDT"]
[Termination "Omk124 won on time"]

1. c4 {[%clk 0:01:42.4]} 1... Nf6 {[%clk 0:02:47.8]} 2. Nc3 {[%clk 0:01:41.4]}
2... g6 {[%clk 0:02:47.2]} 3. e4 {[%clk 0:00:55.3]} 3... d6 {[%clk 0:02:45.5]}
4. d4 {[%clk 0:00:55.1]} 4... Bg7 {[%clk 0:02:45.5]} 5. f4 {[%clk 0:00:55.3]}
5... O-O {[%clk 0:02:44.3]} 6. Nf3 {[%clk 0:00:55.5]} 6... Nbd7 {[%clk
0:02:40.2]} 7. Bd3 {[%clk 0:00:54.3]} 7... e5 {[%clk 0:02:40.3]} 8. fxe5 {[%clk
0:00:55.2]} 8... dxe5 {[%clk 0:02:41.2]} 9. d5 {[%clk 0:00:56]} 9... Nc5 {[%clk
0:02:30.6]} 10. Bc2 {[%clk 0:00:53.8]} 10... a5 {[%clk 0:02:28.3]} 11. O-O
{[%clk 0:00:53.5]} 11... Bg4 {[%clk 0:02:27.9]} 12. h3 {[%clk 0:00:53.1]} 12...
Bxf3 {[%clk 0:02:26.9]} 13. Qxf3 {[%clk 0:00:54]} 13... Ne8 {[%clk 0:02:18.8]}
14. Be3 {[%clk 0:00:51.7]} 14... b6 {[%clk 0:02:14.8]} 15. Rae1 {[%clk
0:00:40.8]} 15... Nd6 {[%clk 0:02:14.1]} 16. Bc1 {[%clk 0:00:39.8]} 16... Nxc4
{[%clk 0:02:13.3]} 17. Qg3 {[%clk 0:00:34.8]} 17... Nd6 {[%clk 0:02:03.2]} 18.
Bg5 {[%clk 0:00:33.6]} 18... f6 {[%clk 0:02:02.9]} 19. Be3 {[%clk 0:00:32]}
19... Nd7 {[%clk 0:01:56.2]} 20. Qh2 {[%clk 0:00:28.8]} 20... Nc4 {[%clk
0:01:55.9]} 21. Bc1 {[%clk 0:00:28.7]} 21... Qe7 {[%clk 0:01:55.5]} 22. g4
{[%clk 0:00:24]} 22... Nd6 {[%clk 0:01:46.8]} 23. h4 {[%clk 0:00:21.5]} 23... h6
{[%clk 0:01:39.3]} 24. Ne2 {[%clk 0:00:20.3]} 24... Nb5 {[%clk 0:01:30.7]} 25.
Ng3 {[%clk 0:00:19.8]} 25... Qc5+ {[%clk 0:01:30.6]} 26. Kh1 {[%clk 0:00:19]}
26... Nd4 {[%clk 0:01:30.4]} 27. Bb1 {[%clk 0:00:18.2]} 27... Qb4 {[%clk
0:01:29.4]} 28. a3 {[%clk 0:00:16.9]} 28... Qc4 {[%clk 0:01:27.4]} 29. g5 {[%clk
0:00:12.6]} 29... fxg5 {[%clk 0:01:24.4]} 30. hxg5 {[%clk 0:00:11.5]} 30... Nf3
{[%clk 0:01:20.1]} 31. Qe2 {[%clk 0:00:07.2]} 31... Qxe2 {[%clk 0:01:17.4]} 32.
Rxe2 {[%clk 0:00:07.3]} 32... Nxg5 {[%clk 0:01:16]} 33. Kg2 {[%clk 0:00:03.1]}
33... Rxf1 {[%clk 0:01:14.9]} 34. Kxf1 {[%clk 0:00:04]} 34... Rf8+ {[%clk
0:01:14.2]} 35. Kg2 {[%clk 0:00:04.4]} 35... Nf3 {[%clk 0:01:14.3]} 36. Be3
{[%clk 0:00:01.8]} 36... Nd4 {[%clk 0:01:14.2]} 37. Rd2 {[%clk 0:00:01.1]} 37...
Nc5 {[%clk 0:01:13.8]} 38. Rf2 {[%clk 0:00:01.2]} 38... Rxf2+ {[%clk 0:01:13.1]}
39. Bxf2 {[%clk 0:00:02.1]} 39... h5 {[%clk 0:01:10]} 40. Kf1 {[%clk 0:00:02.2]}
40... Bf6 {[%clk 0:01:09.9]} 41. Ne2 {[%clk 0:00:02.4]} 41... Ncb3 {[%clk
0:01:04.9]} 42. Nc3 {[%clk 0:00:01.9]} 42... g5 {[%clk 0:01:02]} 43. Bd3 {[%clk
0:00:01.7]} 43... h4 {[%clk 0:01:00.3]} 44. Bc4 {[%clk 0:00:00.8]} 44... Nd2+
{[%clk 0:00:59.5]} 0-1

[Event "*** Titled Tuesday Blitz"]
[Site "Chess.com"]
[Date "2021.03.30"]
[Round "1"]
[White "vovachesss"]
[Black "sau6on"]
[Result "1-0"]
[WhiteElo "2674"]
[BlackElo "2354"]
[TimeControl "180+1"]
[EndTime "10:07:08 PDT"]
[Termination "vovachesss won by checkmate"]

1. e4 {[%clk 0:02:55.3]} 1... c5 {[%clk 0:02:59.6]} 2. d4 {[%clk 0:02:54.6]}
2... cxd4 {[%clk 0:02:59]} 3. c3 {[%clk 0:02:55.2]} 3... dxc3 {[%clk 0:02:59.5]}
4. Nxc3 {[%clk 0:02:56.1]} 4... Nc6 {[%clk 0:02:58.7]} 5. Nf3 {[%clk 0:02:56.4]}
5... d6 {[%clk 0:02:57.3]} 6. Bc4 {[%clk 0:02:57]} 6... a6 {[%clk 0:02:56.9]} 7.
O-O {[%clk 0:02:57]} 7... Nf6 {[%clk 0:02:52.3]} 8. h3 {[%clk 0:02:54.3]} 8...
b5 {[%clk 0:02:45.1]} 9. Bb3 {[%clk 0:02:52]} 9... e6 {[%clk 0:02:39.9]} 10. Qe2
{[%clk 0:02:47.8]} 10... Be7 {[%clk 0:02:32.8]} 11. Rd1 {[%clk 0:02:48.2]} 11...
Bd7 {[%clk 0:02:31.9]} 12. Bf4 {[%clk 0:02:44.8]} 12... Qb8 {[%clk 0:02:28.9]}
13. Rd2 {[%clk 0:02:28.9]} 13... Ra7 {[%clk 0:01:55.7]} 14. Rad1 {[%clk
0:02:27]} 14... Ne5 {[%clk 0:01:53.1]} 15. Bh2 {[%clk 0:01:44.7]} 15... O-O
{[%clk 0:01:46.6]} 16. Nd4 {[%clk 0:01:32.8]} 16... Rd8 {[%clk 0:01:20.9]} 17.
f4 {[%clk 0:01:29.9]} 17... Nc6 {[%clk 0:01:18.9]} 18. Nxc6 {[%clk 0:01:27.5]}
18... Bxc6 {[%clk 0:01:15.7]} 19. f5 {[%clk 0:01:18.2]} 19... e5 {[%clk
0:01:11.9]} 20. Bg3 {[%clk 0:01:06.9]} 20... b4 {[%clk 0:00:45.4]} 21. Nd5
{[%clk 0:01:03.8]} 21... Nxd5 {[%clk 0:00:44.8]} 22. Bxd5 {[%clk 0:01:04.7]}
22... Bxd5 {[%clk 0:00:44.7]} 23. Rxd5 {[%clk 0:01:05.6]} 23... a5 {[%clk
0:00:38.6]} 24. Qd3 {[%clk 0:00:38.1]} 24... Rc8 {[%clk 0:00:35]} 25. f6 {[%clk
0:00:24]} 25... gxf6 {[%clk 0:00:24.8]} 26. Qf3 {[%clk 0:00:22.3]} 26... Kh8
{[%clk 0:00:19.3]} 27. Bh4 {[%clk 0:00:20.7]} 27... Qb6+ {[%clk 0:00:10.8]} 28.
Kh1 {[%clk 0:00:19.9]} 28... Qd8 {[%clk 0:00:10.8]} 29. Rxd6 {[%clk 0:00:17.7]}
29... Qf8 {[%clk 0:00:06.9]} 30. Bxf6+ {[%clk 0:00:16.9]} 30... Bxf6 {[%clk
0:00:05.6]} 31. Qxf6+ {[%clk 0:00:17.8]} 31... Qg7 {[%clk 0:00:04.6]} 32. Rd8+
{[%clk 0:00:17.5]} 32... Rxd8 {[%clk 0:00:05]} 33. Rxd8# {[%clk 0:00:18.4]} 1-0

[Event "*** Titled Tuesday Blitz"]
[Site "Chess.com"]
[Date "2021.03.30"]
[Round "1"]
[White "bait_or_mate"]
[Black "Lyschko"]
[Result "0-1"]
[WhiteElo "2513"]
[BlackElo "2230"]
[TimeControl "180+1"]
[EndTime "10:07:08 PDT"]
[Termination "Lyschko won by resignation"]

1. d4 {[%clk 0:02:58.3]} 1... d6 {[%clk 0:02:59.4]} 2. c4 {[%clk 0:02:59.2]}
2... e5 {[%clk 0:02:59.2]} 3. e3 {[%clk 0:02:58.7]} 3... Nf6 {[%clk 0:02:58.2]}
4. Nc3 {[%clk 0:02:58.3]} 4... Be7 {[%clk 0:02:58]} 5. g3 {[%clk 0:02:58.1]}
5... O-O {[%clk 0:02:57.7]} 6. Bg2 {[%clk 0:02:58.4]} 6... c6 {[%clk 0:02:57.8]}
7. Nge2 {[%clk 0:02:58.8]} 7... Bf5 {[%clk 0:02:54.2]} 8. O-O {[%clk 0:02:58.3]}
8... Nbd7 {[%clk 0:02:50.4]} 9. b3 {[%clk 0:02:57.9]} 9... Qc7 {[%clk 0:02:48]}
10. Bb2 {[%clk 0:02:57.2]} 10... Rad8 {[%clk 0:02:46.1]} 11. Rc1 {[%clk
0:02:53.8]} 11... Rfe8 {[%clk 0:02:42.9]} 12. h3 {[%clk 0:02:43.5]} 12... h6
{[%clk 0:02:40.9]} 13. g4 {[%clk 0:02:41.3]} 13... Bh7 {[%clk 0:02:38.6]} 14.
Ng3 {[%clk 0:02:40.2]} 14... Bf8 {[%clk 0:02:31.3]} 15. Qd2 {[%clk 0:02:34.5]}
15... Qb6 {[%clk 0:02:01.3]} 16. Rfd1 {[%clk 0:02:30.8]} 16... e4 {[%clk
0:01:46.5]} 17. Nce2 {[%clk 0:02:09.3]} 17... d5 {[%clk 0:01:40.3]} 18. Bc3
{[%clk 0:02:01.7]} 18... dxc4 {[%clk 0:01:27.6]} 19. bxc4 {[%clk 0:01:59.4]}
19... Ne5 {[%clk 0:01:24.9]} 20. Ba5 {[%clk 0:01:55.9]} 20... Qa6 {[%clk
0:01:09.5]} 21. Bxd8 {[%clk 0:01:53.7]} 21... Rxd8 {[%clk 0:01:09.4]} 22. Qc2
{[%clk 0:01:41.1]} 22... Nf3+ {[%clk 0:01:03.2]} 23. Kh1 {[%clk 0:01:36.8]}
23... Qa5 {[%clk 0:00:48.8]} 24. Nc3 {[%clk 0:01:29.5]} 24... Qg5 {[%clk
0:00:37.9]} 25. Ncxe4 {[%clk 0:01:27.9]} 25... Nxe4 {[%clk 0:00:35.1]} 26. Nxe4
{[%clk 0:01:28.8]} 26... Qh4 {[%clk 0:00:28.4]} 27. Qe2 {[%clk 0:00:19]} 27...
Bxe4 {[%clk 0:00:26.9]} 28. d5 {[%clk 0:00:19]} 28... Bd6 {[%clk 0:00:22.9]} 29.
dxc6 {[%clk 0:00:18.3]} 29... bxc6 {[%clk 0:00:22.9]} 30. c5 {[%clk 0:00:18]}
30... Bc7 {[%clk 0:00:20.1]} 31. Rxd8+ {[%clk 0:00:17.9]} 31... Bxd8 {[%clk
0:00:20.1]} 32. Rd1 {[%clk 0:00:17.8]} 32... Bf6 {[%clk 0:00:20]} 33. Rd7 {[%clk
0:00:16.6]} 33... Ng5 {[%clk 0:00:18.1]} 34. f3 {[%clk 0:00:11.6]} 34... Nxh3
{[%clk 0:00:14.9]} 35. fxe4 {[%clk 0:00:08.9]} 35... Nf4+ {[%clk 0:00:14.1]} 0-1